bitfinex/quotes_ETHUSD_20250329
["timestamp","ask_amount","ask_price","bid_price","bid_amount"]
[1743209091128,5.22442,1914.1,1913.8,0.7733]
[1743209091298,5.22442,1914.1,1913.8,5.6613]
[1743209092016,5.22423,1914.2,1913.8,10.88649]
[1743209093430,5.22423,1914.2,1913.8,15.262286]
[1743209093735,5.22423,1914.2,1913.8,10.037096]
[1743209093909,5.2244,1914.1,1913.8,10.037096]
[1743209094408,5.2244,1914.1,1913.8,5.6613]
[1743209094847,5.22423,1914.2,1913.8,5.6613]
[1743209096232,5.22423,1914.2,1913.8,10.93868606]
[1743209096434,5.22423,1914.2,1913.8,10.88644]
[1743209097533,5.22386,1914.3,1913.8,10.11296]
[1743209097704,5.22386,1914.3,1913.9,0.7733]
[1743209097904,10.44792,1914.3,1913.9,5.99816]
[1743209098730,5.22412,1914.2,1913.9,0.7733]
[1743209102351,10.44793,1914.3,1913.9,5.9981]
[1743209102554,3.5622,1914.4,1913.9,0.7733]
[1743209102749,5.2245,1914.1,1913.9,0.7733]
[1743209103251,5.2245,1914.1,1913.8,4.888]
[1743209103453,3.79990266,1914.2,1913.7,0.8149]
[1743209103750,3.79990266,1914.2,1913.7,5.7029]
[1743209103751,5.22505,1913.9,1913.7,5.7029]
[1743209105132,5.22505,1913.9,1913.8,0.2942056]
[1743209105756,5.747555,1913.9,1913.8,0.2942056]
[1743209106056,5.22531,1913.8,1913.5,32.535]
[1743209106260,5.22531,1913.8,1913.6,0.29448266]
[1743209106560,5.22547,1913.7,1913.6,0.29448266]
[1743209108171,5.78767,1913.7,1913.6,0.29448266]
[1743209108361,7.21273827,1913.7,1913.6,0.29448266]
[1743209109045,5.22606,1913.5,1913.2,5.7029]
[1743209109358,5.2258,1913.6,1913.3,0.29489835]
[1743209109753,10.45179,1913.6,1913.3,0.29489835]
[1743209109958,10.4517,1913.6,1913.3,0.29489835]
[1743209110145,5.2258,1913.6,1913.3,0.29489835]
[1743209110331,10.45169,1913.6,1913.3,0.29489835]
[1743209110674,5.2258,1913.6,1913.3,0.29489835]
[1743209110841,10.45167,1913.6,1913.3,0.29489835]
[1743209112035,5.22603,1913.5,1913.3,0.29489835]
[1743209113768,10.45166,1913.6,1913.3,0.29489835]
[1743209113945,5.22608,1913.5,1913.3,0.29489835]
[1743209117078,5.22629,1913.4,1913.3,0.29489835]
[1743209117750,8.22629,1913.4,1913.3,0.29489835]
[1743209117946,11.46399266,1913.4,1913.3,0.29489835]
[1743209118355,5.22744,1913.0,1912.8,28.4799]
[1743209118550,5.22721,1913.1,1912.8,33.3689]
[1743209119471,10.45458,1913.1,1912.8,33.3689]
[1743209119669,5.2275,1913.0,1912.8,32.538]
[1743209120060,5.2275,1913.0,1912.9,0.30262425]
[1743209120261,5.22766,1912.9,1912.8,32.538]
[1743209120471,5.22766,1912.9,1912.8,32.8407629]
[1743209120862,5.78986,1912.9,1912.8,27.9517629]
[1743209121066,6.68146658,1912.9,1912.8,0.3027629]
[1743209121365,5.22797,1912.8,1912.6,4.889]
[1743209122080,6.68146658,1912.9,1912.6,4.889]
[1743209123173,11.90936658,1912.9,1912.6,4.889]
[1743209123372,11.90927658,1912.9,1912.6,4.889]
[1743209123775,11.90926658,1912.9,1912.6,4.889]
[1743209124285,1.06958708,1913.2,1912.8,5.22781]
[1743209124591,3.0,1913.1,1912.8,5.22781]
[1743209124881,3.0,1913.1,1912.7,0.8333]
[1743209124882,8.22733,1913.1,1912.7,0.8333]
[1743209125073,13.4547,1913.1,1912.7,0.8333]
[1743209125585,5.22772,1912.9,1912.7,0.8333]
[1743209125782,5.2277,1912.9,1912.7,0.8333]
[1743209126483,5.22765,1913.0,1912.7,0.8333]
[1743209127085,5.22775,1912.9,1912.6,4.889]
[1743209127688,5.22795,1912.8,1912.6,4.889]
[1743209128051,5.22775,1912.9,1912.6,4.889]
[1743209128590,8.46515266,1913.0,1912.6,4.889]
[1743209128878,10.19062593,1913.0,1912.6,4.889]
[1743209129093,6.95292327,1913.0,1912.6,10.11744]
[1743209129456,12.18056327,1913.0,1912.6,4.889]
[1743209129785,5.22769,1912.9,1912.6,4.889]
[1743209131586,12.18053327,1913.0,1912.6,10.11748]
[1743209131970,5.22768,1912.9,1912.6,4.889]
[1743209132303,6.95291327,1913.0,1912.6,4.889]
[1743209132456,14.28731,1913.1,1912.7,6.05477]
[1743209132665,5.2275,1913.0,1912.7,0.8267]
[1743209133274,5.22772,1912.9,1912.7,0.8267]
[1743209133480,5.2275,1913.0,1912.7,0.8267]
[1743209133696,6.65625,1913.0,1912.7,0.8267]
[1743209135088,6.65625,1913.0,1912.8,0.48400766]
[1743209135789,11.88388,1913.0,1912.8,0.48400766]
[1743209135995,6.65625,1913.0,1912.8,0.48400766]
[1743209137604,11.8839,1913.0,1912.8,0.48400766]
[1743209137900,0.88792485,1912.9,1912.8,0.48400766]
[1743209138277,5.2275,1913.0,1912.8,0.48400766]
[1743209142911,16.23224424,1913.1,1912.8,0.48400766]
[1743209143236,19.51448,1913.1,1912.8,0.48400766]
[1743209143716,5.2274,1913.0,1912.8,0.48400766]
[1743209149030,5.22766,1912.9,1912.8,0.48400766]
[1743209149230,8.21829024,1912.9,1912.8,0.48400766]
[1743209149385,6.273166,1912.9,1912.8,0.48400766]
[1743209149693,6.273166,1912.9,1912.8,0.48413141]
[1743209149894,6.273166,1912.9,1912.6,4.889]
[1743209150128,6.273166,1912.9,1912.7,0.48427932]
[1743209150323,0.6273166,1912.8,1912.7,0.48427932]
[1743209150492,0.6273166,1912.8,1912.6,4.889]
[1743209150819,0.6273166,1912.8,1912.7,0.48427932]
[1743209151214,0.6273166,1912.8,1912.6,4.889]
[1743209151415,5.8552466,1912.8,1912.7,0.48427932]
[1743209151815,5.8552466,1912.8,1912.6,4.889]
[1743209152126,5.8552466,1912.8,1912.7,0.48427932]
[1743209152503,5.8552466,1912.8,1912.6,4.889]
[1743209152696,5.8552466,1912.8,1912.7,0.48427932]
[1743209152895,5.8552466,1912.8,1912.6,4.889]
[1743209153094,5.8552466,1912.8,1912.7,0.48427932]
[1743209153295,5.8552466,1912.8,1912.6,4.889]
[1743209153525,5.8552466,1912.8,1912.7,0.48427932]
[1743209153905,5.8552466,1912.8,1912.6,4.889]
[1743209154106,5.8552466,1912.8,1912.7,0.48427932]
[1743209154307,5.8552466,1912.8,1912.6,4.889]
[1743209154506,5.8552466,1912.8,1912.7,0.48427932]
[1743209154710,5.8552466,1912.8,1912.6,4.889]
[1743209154929,5.8552466,1912.8,1912.7,0.4846094]
[1743209155340,5.8552466,1912.8,1912.6,4.889]
[1743209155632,5.8552466,1912.8,1912.7,0.4846094]
[1743209155932,5.8552466,1912.8,1912.6,4.889]
[1743209156136,5.8552466,1912.8,1912.7,0.4846094]
[1743209156534,5.8552466,1912.8,1912.6,4.889]
[1743209156736,5.8552466,1912.8,1912.7,0.4846094]
[1743209157135,5.8552466,1912.8,1912.6,4.889]
[1743209157312,5.8552466,1912.8,1912.7,0.4846094]
[1743209157733,5.8552466,1912.8,1912.6,4.889]
[1743209158033,5.8552466,1912.8,1912.7,0.4846094]
[1743209158333,5.8552466,1912.8,1912.6,4.889]
[1743209158533,5.8552466,1912.8,1912.7,0.4846094]
[1743209158934,5.8552466,1912.8,1912.6,4.889]
[1743209159101,5.8552466,1912.8,1912.7,0.4846094]
[1743209159302,5.8552466,1912.8,1912.6,4.889]
[1743209159503,5.8552466,1912.8,1912.7,0.4846094]
[1743209159838,5.8552466,1912.8,1912.6,4.889]
[1743209160031,5.8552466,1912.8,1912.7,0.4846094]
[1743209160339,5.8552466,1912.8,1912.6,4.889]
[1743209160546,5.84831942,1912.8,1912.7,0.4846094]
[1743209161035,5.22824,1912.7,1912.5,0.7534]
[1743209161243,5.22824,1912.7,1912.4,5.6855]
[1743209161624,11.63866942,1912.8,1912.4,5.6855]
[1743209161804,5.84831942,1912.8,1912.4,10.91451]
[1743209162009,7.17278424,1912.9,1912.5,5.22873]
[1743209162243,12.40067424,1912.9,1912.5,5.22873]
[1743209162440,5.22766,1912.9,1912.5,5.22873]
[1743209162614,10.45558,1912.9,1912.5,5.22873]
[1743209163226,7.17278424,1912.9,1912.4,10.91442]
[1743209163427,7.17278424,1912.9,1912.5,6.02325]
[1743209163428,5.22766,1912.9,1912.5,6.02325]
[1743209164242,6.57081409,1912.9,1912.5,6.02325]
[1743209164551,6.06,1913.1,1912.8,5.22768]
[1743209164841,2.93471374,1913.3,1913.0,0.7945]
[1743209165045,8.22707,1913.2,1913.1,0.48422415]
[1743209165242,13.45415,1913.2,1913.0,0.7945]
[1743209165541,8.22707,1913.2,1913.1,0.48422415]
[1743209165841,8.22707,1913.2,1913.0,0.7945]
[1743209166013,8.22707,1913.2,1913.1,0.48422415]
[1743209166213,8.22707,1913.2,1913.0,0.7945]
[1743209166442,3.0,1913.2,1913.1,0.48422415]
[1743209166647,3.0,1913.2,1913.0,0.7945]
[1743209166940,3.0,1913.2,1913.1,0.48422415]
[1743209167143,3.822662,1913.2,1913.1,0.48422415]
[1743209167341,5.22655,1913.4,1913.0,6.02184]
[1743209167513,5.22655,1913.4,1913.1,0.48422415]
[1743209167710,5.22655,1913.4,1913.0,6.02184]
[1743209167915,5.22655,1913.4,1913.1,0.48422415]
[1743209168115,5.22655,1913.4,1913.0,6.02184]
[1743209168350,3.0,1913.2,1913.1,0.48422415]
[1743209168641,8.22684,1913.2,1912.9,4.89]
[1743209168842,3.0,1913.2,1913.0,1.27887202]
[1743209169220,8.2269,1913.2,1913.0,1.27887202]
[1743209169921,3.0,1913.2,1913.0,1.27887202]
[1743209170117,3.0,1913.2,1913.0,0.48437202]
[1743209170118,5.22711,1913.1,1913.0,0.48437202]
[1743209170356,5.22758,1913.0,1912.8,4.89]
[1743209170656,5.22766,1912.9,1912.8,4.89]
[1743209172644,5.22815,1912.8,1912.3,6.02368]
[1743209172846,13.41879166,1912.8,1912.5,4.89]
[1743209173048,11.47366742,1912.8,1912.5,4.89]
[1743209173764,5.22837,1912.7,1912.5,4.89]
[1743209175259,3.0,1912.9,1912.5,4.89]
[1743209175417,5.22864,1912.6,1912.3,0.7945]
[1743209175621,5.22864,1912.6,1912.4,4.89]
[1743209175817,5.22847,1912.7,1912.4,4.89]
[1743209176019,10.45684,1912.7,1912.4,4.89]
[1743209178815,5.22849,1912.6,1912.4,4.89]
[1743209179853,5.22837,1912.7,1912.4,4.89]
[1743209180350,5.22837,1912.7,1912.5,0.4854829]
[1743209180570,5.22794,1912.8,1912.5,0.4854829]
[1743209180733,3.0,1912.7,1912.6,0.7807]
[1743209181224,3.0,1912.7,1912.6,1.26603496]
[1743209183135,8.22821,1912.7,1912.6,1.26603496]
[1743209184023,3.0,1912.7,1912.6,1.26603496]
[1743209184225,9.26785204,1913.1,1912.6,6.49449496]
[1743209184426,9.78416558,1913.1,1912.7,0.7807]
[1743209184656,3.0,1912.9,1912.8,5.37603911]
[1743209186380,5.11924558,1913.1,1912.8,5.37603911]
[1743209186973,3.0,1912.9,1912.8,5.37603911]
[1743209188370,3.75270209,1912.9,1912.8,5.37603911]
[1743209188561,8.98036209,1912.9,1912.8,5.37603911]
[1743209190269,3.75270209,1912.9,1912.8,5.37603911]
[1743209191762,8.98036209,1912.9,1912.8,5.37603911]
[1743209195071,8.98036209,1912.9,1912.8,0.48503911]
[1743209195237,9.54274209,1912.9,1912.3,0.7667]
[1743209195437,5.2289,1912.5,1912.4,0.48530078]
[1743209195668,5.2289,1912.5,1912.2,32.558]
[1743209195844,5.2289,1912.5,1912.3,0.44386149]
[1743209196349,5.79078,1912.6,1912.3,0.44386149]
[1743209196350,11.01949,1912.6,1912.3,0.44386149]
[1743209196877,5.22892,1912.5,1912.3,0.44386149]
[1743209200797,5.22903,1912.4,1912.3,0.44386149]
[1743209204083,8.22903,1912.4,1912.3,0.44386149]
[1743209205912,5.22932,1912.3,1912.1,5.6577]
[1743209206081,5.22932,1912.3,1912.2,0.40813389]
[1743209206263,5.22932,1912.3,1912.1,5.6577]
[1743209206467,5.22957,1912.2,1911.9,0.7907]
[1743209206776,5.22957,1912.2,1911.9,5.6817]
[1743209207000,10.45999,1912.1,1911.9,5.6817]
[1743209207204,5.22992,1912.1,1911.9,5.6817]
[1743209208905,3.0,1912.1,1911.9,5.6817]
[1743209210104,3.0,1912.1,1912.0,0.40945183]
[1743209210301,3.0,1912.4,1912.0,6.24868701]
[1743209210488,3.0,1912.4,1912.1,6.02051]
[1743209210695,3.0,1912.4,1912.2,0.4091558]
[1743209210867,8.22904,1912.4,1912.1,0.7907]
[1743209211205,8.22904,1912.4,1912.2,0.4091558]
[1743209211582,8.22904,1912.4,1912.1,0.7907]
[1743209211767,8.22904,1912.4,1912.3,0.40900781]
[1743209212305,8.22904,1912.4,1912.1,0.7907]
[1743209212683,8.22904,1912.4,1912.2,0.4091558]
[1743209213002,8.22904,1912.4,1912.1,0.7907]
[1743209213337,3.0,1912.4,1912.3,0.40900781]
[1743209213883,3.0,1912.4,1912.1,0.7907]
[1743209214082,3.0,1912.4,1912.2,0.4091558]
[1743209214309,3.0,1912.4,1912.1,0.7907]
[1743209214508,8.22908,1912.4,1912.1,0.7907]
[1743209214706,8.22908,1912.4,1912.2,0.4091558]
[1743209215008,3.0,1912.4,1912.1,0.7907]
[1743209215207,3.0,1912.4,1912.3,0.40900781]
[1743209215385,9.76122148,1912.4,1912.2,0.4091558]
[1743209215587,9.76122148,1912.4,1912.3,0.40900781]
[1743209216010,9.76122148,1912.4,1912.1,0.7907]
[1743209216216,8.22903,1912.4,1912.3,0.40900781]
[1743209216508,3.0,1912.4,1912.2,0.4091558]
[1743209217010,3.0,1912.4,1912.3,0.40900781]
[1743209217410,3.5622,1912.4,1911.8,0.7907]
[1743209217611,5.22969,1912.2,1911.9,4.892]
[1743209217794,3.24268378,1912.3,1911.9,4.892]
[1743209217795,8.47205378,1912.3,1911.9,4.892]
[1743209218325,10.07772838,1912.4,1912.0,0.7907]
[1743209218510,8.22904,1912.4,1912.0,0.7907]
[1743209219004,8.22904,1912.4,1912.0,6.02076]
[1743209219322,5.22973,1912.2,1911.8,10.12257]
[1743209219507,5.22973,1912.2,1911.8,10.17487045]
[1743209219706,5.22973,1912.2,1911.8,10.12257]
[1743209220415,5.22973,1912.2,1911.9,0.8041]
[1743209220616,3.0,1912.2,1911.9,0.8041]
[1743209221010,3.0,1912.2,1911.9,6.03448]
[1743209221321,8.22959,1912.2,1911.9,0.8041]
[1743209222615,8.22909,1912.4,1912.1,0.8017]
[1743209223879,6.24268378,1912.2,1911.5,0.8017]
[1743209224082,8.47318378,1911.9,1911.5,0.8017]
[1743209224309,8.47318378,1911.9,1911.5,5.7067]
[1743209224514,8.47275378,1912.1,1911.5,5.7067]
[1743209224716,13.70284378,1912.1,1911.6,32.90408]
[1743209224913,3.0,1911.9,1911.7,0.8017]
[1743209225291,3.0,1911.9,1911.8,0.41195536]
[1743209225489,8.23039,1911.9,1911.8,0.41195536]
[1743209225921,3.0,1911.9,1911.8,0.41195536]
[1743209226821,8.23039,1911.9,1911.8,0.41195536]
[1743209229011,8.47253378,1912.1,1911.8,0.41195536]
[1743209229207,11.28946,1912.3,1911.8,0.41195536]
[1743209229208,11.2895,1912.3,1911.8,5.64261536]
[1743209229409,3.0,1912.2,1911.9,0.8017]
[1743209229613,8.22958,1912.2,1911.9,0.8017]
[1743209229812,13.4594,1912.2,1912.0,0.41161838]
[1743209230321,8.22958,1912.2,1912.0,0.41161838]
[1743209230627,5.22985,1912.1,1912.0,0.41161838]
[1743209231422,8.22985,1912.1,1912.0,0.41161838]
[1743209233229,3.0,1912.1,1912.0,0.41161838]
[1743209234025,8.22985,1912.1,1912.0,0.41161838]
[1743209234608,8.22985,1912.1,1911.8,0.8017]
[1743209234827,8.22985,1912.1,1912.0,0.41161838]
[1743209235136,9.90006138,1912.1,1911.9,0.41176642]
[1743209235429,8.22985,1912.1,1912.0,0.41223171]
[1743209235800,8.22985,1912.1,1911.8,0.8017]
[1743209235998,8.22985,1912.1,1912.0,0.41223171]
[1743209236212,8.22985,1912.1,1911.8,0.8017]
[1743209236405,11.47253378,1912.1,1912.0,0.41223171]
[1743209236622,8.23012,1912.0,1911.9,0.41237975]
[1743209236830,8.23012,1912.0,1911.8,0.8017]
[1743209238833,3.0,1912.0,1911.8,0.8017]
[1743209239128,11.47253378,1912.1,1911.8,0.8017]
[1743209240024,8.22988,1912.1,1911.9,0.41237975]
[1743209240233,3.0,1912.1,1911.9,0.41237975]
[1743209240416,3.0,1912.2,1912.0,5.7006]
[1743209240817,8.22961,1912.2,1912.1,0.41208369]
[1743209246431,3.0,1912.2,1912.1,0.41208369]
[1743209247245,6.06,1912.3,1912.1,5.64182369]
[1743209247459,6.06,1912.3,1912.2,6.02917]
[1743209247613,3.24268378,1912.6,1912.2,6.02895]
[1743209247809,3.24268378,1912.6,1912.3,0.41178769]
[1743209248033,3.24268378,1912.6,1912.3,5.64107769]
[1743209248243,3.0,1912.5,1912.3,5.64107769]
[1743209248447,3.0,1912.5,1912.4,0.7996]
[1743209248641,3.24268378,1912.8,1912.4,6.02843]
[1743209248940,4.14593816,1912.8,1912.4,11.34035253]
[1743209249242,9.37392816,1912.8,1912.4,16.56926253]
[1743209249409,0.5622,1912.9,1912.5,5.22874]
[1743209249611,3.0,1912.7,1912.6,0.40962662]
[1743209249812,3.24268378,1912.8,1912.6,0.40962662]
[1743209250540,3.24268378,1912.8,1912.6,5.63810662]
[1743209250851,6.24268378,1912.8,1912.7,0.7899]
[1743209251221,6.24268378,1912.8,1912.7,1.19937869]
[1743209251421,6.24268378,1912.8,1912.7,0.40947869]
[1743209251634,11.47061378,1912.8,1912.7,0.40947869]
[1743209251944,11.47061378,1912.8,1912.5,0.7899]
[1743209252142,11.47061378,1912.8,1912.7,0.40947869]
[1743209252312,6.24268378,1912.8,1912.6,0.40962662]
[1743209252513,6.24268378,1912.8,1912.7,0.40947869]
[1743209252913,6.24268378,1912.8,1912.5,6.01865]
[1743209253145,6.24268378,1912.8,1912.7,0.40947869]
[1743209253365,11.47069378,1912.8,1912.6,0.40962662]
[1743209253647,11.47069378,1912.8,1912.7,0.40947869]
[1743209253809,13.14053016,1912.8,1912.7,0.40947869]
[1743209254013,13.70273016,1912.8,1912.7,0.40947869]
[1743209254220,18.93090016,1912.8,1912.4,4.898]
[1743209254423,5.22949,1912.3,1911.9,4.904]
[1743209254622,8.47225378,1912.2,1911.9,4.904]
[1743209255025,8.47225378,1912.2,1912.0,0.37291542]
[1743209255426,8.22985,1912.1,1912.0,0.37291542]
[1743209259354,3.0,1912.1,1912.0,0.37291542]
[1743209260065,8.22985,1912.1,1912.0,0.37291542]
[1743209262324,9.95628038,1912.1,1912.0,0.37291542]
[1743209262529,9.95628038,1912.1,1911.8,0.7899]
[1743209262752,8.22985,1912.1,1912.0,0.37291542]
[1743209262953,8.22985,1912.1,1911.9,0.37306346]
[1743209263153,8.22985,1912.1,1912.0,0.37291542]
[1743209263552,8.22985,1912.1,1911.8,0.7899]
[1743209263754,8.22985,1912.1,1912.0,0.37291542]
[1743209264063,11.47253378,1912.1,1911.8,0.7899]
[1743209264258,16.70261378,1912.1,1912.0,0.37291542]
[1743209264464,18.42909516,1912.1,1911.9,0.37306346]
[1743209264769,16.70261378,1912.1,1911.8,0.7899]
[1743209264926,16.70261378,1912.1,1912.0,0.37291542]
[1743209265132,16.70261378,1912.1,1911.8,0.7899]
[1743209265430,16.70261378,1912.1,1911.9,0.37469137]
[1743209265765,5.23012,1912.0,1911.9,0.37469137]
[1743209266464,6.90038538,1912.0,1911.9,0.37469137]
[1743209266938,8.23048,1911.9,1911.6,5.701]
[1743209267246,11.47316378,1911.9,1911.6,5.701]
[1743209267867,16.70378378,1911.9,1911.6,5.7]
[1743209268168,5.23074,1911.8,1911.6,5.7]
[1743209269373,5.23074,1911.8,1911.6,0.802]
[1743209270042,5.23074,1911.8,1911.7,0.3749875]
[1743209273670,11.47316378,1911.9,1911.7,0.3749875]
[1743209273671,6.24268378,1911.9,1911.7,0.3749875]
[1743209274168,11.47315378,1911.9,1911.7,0.3749875]
[1743209275346,12.62046916,1911.9,1911.7,0.3749875]
[1743209275549,5.23067,1911.8,1911.7,0.3749875]
[1743209276149,5.23067,1911.8,1911.5,4.894]
[1743209276342,8.47335378,1911.8,1911.7,0.37759245]
[1743209276542,8.47335378,1911.8,1911.6,0.37774054]
[1743209276744,8.47335378,1911.8,1911.7,0.37759245]
[1743209277146,8.47335378,1911.8,1911.5,4.893]
[1743209277358,8.47335378,1911.8,1911.7,0.37759245]
[1743209277540,9.63578607,1911.8,1911.6,0.37774054]
[1743209277842,8.47335378,1911.8,1911.7,0.37759245]
[1743209278039,8.47335378,1911.8,1911.5,4.893]
[1743209278240,8.47335378,1911.8,1911.6,0.37774054]
[1743209280143,3.24268378,1911.8,1911.6,0.37774054]
[1743209280345,3.0,1911.9,1911.7,5.23091]
[1743209280544,3.0,1911.9,1911.8,0.7615]
[1743209280745,3.0,1911.9,1911.8,1.13894438]
[1743209284379,3.0,1911.9,1911.8,0.37744438]
[1743209284778,3.0,1911.9,1911.6,5.99251]
[1743209284991,3.0,1911.9,1911.8,0.37687446]
[1743209285151,3.0,1911.9,1911.7,0.37726677]
[1743209285471,3.0,1911.9,1911.8,0.3771187]
[1743209285877,3.0,1911.9,1911.6,5.99251]
[1743209286172,3.0,1911.9,1911.8,0.3771187]
[1743209286372,3.0,1911.9,1911.7,0.37726677]
[1743209286582,3.0,1911.9,1911.8,0.3771187]
[1743209286948,3.0,1911.9,1911.6,5.99251]
[1743209287188,3.0,1911.9,1911.8,0.37654883]
[1743209287388,3.0,1911.9,1911.7,0.3766969]
[1743209287562,3.0,1911.9,1911.8,0.37654883]
[1743209287954,3.0,1911.9,1911.6,5.99251]
[1743209288161,3.0,1911.9,1911.7,0.3767376]
[1743209293209,11.47335378,1911.8,1911.7,0.3767376]
[1743209293368,16.70429378,1911.8,1911.4,4.893]
[1743209293702,16.70429378,1911.8,1911.5,0.34648106]
[1743209294001,6.24268378,1911.8,1911.5,5.57796106]
[1743209294201,11.47346378,1911.8,1911.5,0.34648106]
[1743209298077,3.0,1911.8,1911.6,6.03636]
[1743209298486,3.0,1911.8,1911.7,0.34736546]
[1743209302695,3.0,1911.8,1911.4,5.71]
[1743209302696,11.47335378,1911.8,1911.4,10.9417]
[1743209302903,11.47335378,1911.8,1911.7,0.34695834]
[1743209303108,11.47335378,1911.8,1911.4,10.9417]
[1743209303285,11.47335378,1911.8,1911.7,0.34736546]
[1743209303486,13.14374516,1911.8,1911.4,10.9417]
[1743209303686,11.47335378,1911.8,1911.7,0.34736546]
[1743209303897,11.47335378,1911.8,1911.4,10.9417]
[1743209304097,11.47335378,1911.8,1911.7,0.34736546]
[1743209304585,11.47335378,1911.8,1911.4,10.9417]
[1743209304788,11.47335378,1911.8,1911.5,0.34766164]
[1743209305505,13.14374516,1911.8,1911.5,0.34766164]
[1743209306484,11.47335378,1911.8,1911.5,0.34766164]
[1743209308918,1.94772721,1911.7,1911.5,0.34766164]
[1743209311411,4.94772721,1911.8,1911.5,5.57914164]
[1743209314485,10.17840721,1911.8,1911.5,0.34766164]
[1743209314687,1.94772721,1911.7,1911.5,0.34766164]
[1743209315115,10.17840721,1911.8,1911.5,0.34766164]
[1743209315414,1.94772721,1911.7,1911.5,0.34766164]
[1743209315714,1.94772721,1911.7,1911.5,5.57915164]
[1743209316312,10.17840721,1911.8,1911.5,5.57915164]
[1743209316729,10.17840721,1911.8,1911.6,5.23116]
[1743209316730,3.0,1911.8,1911.6,5.23116]
[1743209316889,1.05660099,1911.9,1911.8,5.23067]
[1743209317294,1.05660099,1911.9,1911.8,0.34754314]
[1743209319319,6.0043282,1911.9,1911.8,0.34754314]
[1743209319618,6.0043282,1911.9,1911.6,10.12416]
[1743209319823,6.0043282,1911.9,1911.7,0.34769121]
[1743209323523,1.94772721,1911.8,1911.7,0.34769121]
[1743209323694,7.17839721,1911.8,1911.7,0.34769121]
[1743209323900,7.17839721,1911.8,1911.5,4.893]
[1743209324431,10.17839721,1911.8,1911.5,4.893]
[1743209324726,4.94772721,1911.8,1911.5,10.12437]
[1743209324951,3.0,1911.8,1911.5,15.35565]
[1743209326093,3.0,1911.8,1911.5,10.12428]
[1743209326628,3.0,1911.8,1911.6,5.23116]
[1743209326830,3.0,1911.8,1911.6,6.01836]
[1743209330127,3.0,1911.8,1911.7,0.34765046]
[1743209334636,4.94772721,1911.8,1911.7,0.34765046]
[1743209334793,4.94772721,1911.8,1911.5,10.91158]
[1743209334993,3.0,1911.8,1911.6,0.34779854]
[1743209341826,4.94772721,1911.8,1911.6,0.34779854]
[1743209342205,3.0,1911.8,1911.6,0.34779854]
[1743209342911,7.17812721,1911.9,1911.6,0.34779854]
[1743209343118,3.0,1911.9,1911.6,5.57889854]
[1743209343318,8.23042,1911.9,1911.6,0.34779854]
[1743209343638,10.17814721,1911.9,1911.6,0.34779854]
[1743209344251,2.50992721,1912.0,1911.7,5.23079]
[1743209344535,1.94772721,1912.0,1911.8,0.34790964]
[1743209344722,2.96548793,1912.0,1911.8,0.34790964]
[1743209345140,3.0,1911.9,1911.8,0.34790964]
[1743209346004,1.03047689,1912.2,1912.0,0.7749]
[1743209346234,1.03047689,1912.2,1912.1,0.34799484]
[1743209346644,12.40598721,1912.4,1912.1,0.34799484]
[1743209347021,3.0,1912.3,1912.1,0.34799484]
[1743209347542,13.79889721,1912.5,1912.1,5.57759484]
[1743209347716,1.94772721,1912.4,1912.1,0.34799484]
[1743209347917,10.17678721,1912.4,1912.1,0.34799484]
[1743209348637,3.0,1912.4,1912.1,0.34799484]
[1743209348835,4.94772721,1912.4,1912.1,0.34799484]
[1743209349243,10.17681721,1912.4,1912.1,0.34799484]
[1743209349638,4.94772721,1912.4,1912.1,0.34799484]
[1743209349837,3.0,1912.4,1912.1,6.73605932]
[1743209350049,3.0,1912.4,1912.1,6.73597932]
[1743209350961,7.17611721,1912.7,1912.3,0.7749]
[1743209351145,1.94772721,1912.6,1912.3,5.6669]
[1743209351350,1.94772721,1912.6,1912.4,0.34404963]
[1743209351717,1.94772721,1912.6,1912.3,10.89619]
[1743209352054,1.94772721,1912.6,1912.4,0.34404963]
[1743209352055,0.71761172,1912.6,1912.4,0.34404963]
[1743209352353,15.40549721,1912.5,1912.1,5.6669]
[1743209352549,1.94772721,1912.4,1912.1,5.6669]
[1743209352849,1.94772721,1912.4,1912.2,0.3443456]
[1743209353152,10.17647721,1912.5,1912.1,10.89661]
[1743209353317,3.0,1912.5,1912.3,0.34419761]
[1743209353517,3.0,1912.5,1912.4,0.7749]
[1743209353753,3.0,1912.5,1912.4,1.11894963]
[1743209358759,3.0,1912.5,1912.4,0.34404963]
[1743209359061,5.22906,1912.4,1912.1,4.891]
[1743209359362,5.22906,1912.4,1912.2,0.3443456]
[1743209359782,5.22906,1912.4,1912.1,4.891]
[1743209359927,8.22906,1912.4,1912.3,0.34419761]
[1743209360132,8.22906,1912.4,1912.2,0.3443456]
[1743209360331,8.22906,1912.4,1912.1,4.891]
[1743209360332,8.22906,1912.4,1912.3,0.34419761]
[1743209360725,8.22906,1912.4,1912.1,4.891]
[1743209361059,8.22906,1912.4,1912.2,0.3443456]
[1743209361361,8.22906,1912.4,1912.1,4.891]
[1743209361526,8.22906,1912.4,1912.3,0.34419761]
[1743209361725,8.22906,1912.4,1912.2,0.3443456]
[1743209361950,8.22906,1912.4,1912.3,0.34419761]
[1743209362345,8.22906,1912.4,1912.1,4.891]
[1743209362567,8.22906,1912.4,1912.3,0.34419761]
[1743209362755,8.22906,1912.4,1912.2,0.3443456]
[1743209362954,8.22906,1912.4,1912.3,0.34419761]
[1743209363356,8.22906,1912.4,1912.1,4.891]
[1743209363531,8.22906,1912.4,1912.3,0.34419761]
[1743209363731,8.22906,1912.4,1912.2,0.3443456]
[1743209363962,8.22906,1912.4,1912.3,0.34419761]
[1743209364331,8.22906,1912.4,1912.1,4.891]
[1743209364538,8.22906,1912.4,1912.3,0.34419761]
[1743209365069,8.22906,1912.4,1912.1,4.891]
[1743209365239,8.22906,1912.4,1912.1,5.984396]
[1743209365447,8.22906,1912.4,1912.2,0.3443456]
[1743209365633,8.22906,1912.4,1912.1,5.984396]
[1743209365831,8.22906,1912.4,1912.2,0.3443456]
[1743209366035,8.22906,1912.4,1912.2,0.8131]
[1743209366235,3.0,1912.4,1912.3,0.34379061]